bitfinex/quotes_ETHUSD_20250511
["timestamp","ask_amount","ask_price","bid_price","bid_amount"]
[1746977534897,0.55,2484.7,2483.6,0.769]
[1746977535059,14.07486972,2484.6,2483.6,0.769]
[1746977535267,10.05,2484.6,2483.6,0.769]
[1746977535585,9.3195,2484.5,2483.6,0.769]
[1746977535898,0.55,2484.2,2483.6,0.769]
[1746977536099,16.261,2484.2,2483.6,0.769]
[1746977537202,20.28647765,2484.2,2483.6,0.769]
[1746977537698,16.261,2484.2,2483.6,0.769]
[1746977539514,20.28646689,2484.2,2483.6,0.769]
[1746977539816,0.55,2483.8,2482.8,0.8128]
[1746977540015,4.02632615,2483.7,2482.8,0.8128]
[1746977540223,5.654,2483.6,2482.8,0.8128]
[1746977542698,10.05,2483.8,2482.9,0.0402733]
[1746977543046,5.649,2484.1,2483.0,0.8128]
[1746977544007,8.0,2484.0,2483.2,0.8128]
[1746977544541,10.05,2484.3,2483.3,0.04026586]
[1746977544725,10.05,2484.9,2483.5,0.8128]
[1746977544896,15.705,2485.0,2483.7,0.8128]
[1746977545253,12.878,2485.6,2483.9,0.8044]
[1746977545456,4.02380307,2485.3,2484.1,0.8044]
[1746977545661,2.83,2485.5,2484.1,0.8044]
[1746977545819,12.878,2485.6,2484.0,5.658]
[1746977545820,10.05,2485.6,2484.3,0.8044]
[1746977546471,10.05,2485.6,2484.4,0.8044]
[1746977546757,5.658,2485.8,2484.6,0.8044]
[1746977546923,8.0,2485.7,2484.8,0.8044]
[1746977547123,5.658,2485.8,2484.9,0.04023578]
[1746977547454,10.05,2486.0,2485.0,0.8044]
[1746977547648,8.0,2485.9,2485.1,0.04023293]
[1746977547862,8.0,2485.9,2485.2,0.8044]
[1746977548067,8.0,2485.9,2485.3,0.04023143]
[1746977548254,8.0,2485.9,2485.4,0.8044]
[1746977548756,14.488,2486.1,2485.4,0.8044]
[1746977550563,8.0,2486.1,2485.4,0.8044]
[1746977552445,0.55,2486.0,2485.4,0.8044]
[1746977552785,12.02247354,2486.1,2485.4,0.8044]
[1746977553169,8.0,2486.1,2485.4,0.8044]
[1746977553890,4.57284978,2485.8,2484.7,0.7647]
[1746977554048,12.57320807,2485.6,2484.7,0.7647]
[1746977554255,0.55,2485.4,2484.7,0.7647]
[1746977554483,12.87,2485.5,2484.7,0.7647]
[1746977558207,16.89342705,2485.5,2484.7,0.7647]
[1746977558360,4.02408693,2485.1,2483.9,0.824]
[1746977558705,2.816,2485.0,2483.9,0.824]
[1746977558885,2.816,2485.0,2484.0,0.86425303]
[1746977559206,10.05,2485.1,2484.1,0.04024752]
[1746977559505,10.05,2485.1,2484.2,0.824]
[1746977560214,10.05,2485.1,2484.4,0.824]
[1746977560375,15.695,2485.3,2484.5,0.04024512]
[1746977560578,15.695,2485.3,2483.9,0.824]
[1746977561503,0.55,2485.2,2483.9,0.824]
[1746977561704,4.573955,2485.2,2484.0,0.824]
[1746977561907,0.55,2485.2,2484.1,0.86424985]
[1746977562104,4.02411505,2485.1,2484.2,0.824]
[1746977562311,2.964,2484.8,2484.2,0.824]
[1746977562515,4.02495471,2484.5,2483.7,0.824]
[1746977562677,13.014,2484.4,2483.7,0.824]
[1746977562881,4.02577995,2484.0,2483.4,0.824]
[1746977563176,15.693,2484.0,2483.4,0.824]
[1746977564392,19.71877395,2484.0,2483.4,0.824]
[1746977564579,0.55,2483.9,2483.4,0.824]
[1746977564780,8.55,2483.9,2483.4,0.824]
[1746977565196,12.57596271,2483.9,2483.4,0.824]
[1746977565624,15.77613891,2483.9,2482.8,0.7535]
[1746977565832,16.49016809,2483.8,2482.8,0.7535]
[1746977566130,5.642,2483.7,2482.8,0.7535]
[1746977568932,15.692,2483.7,2482.8,0.7535]
[1746977569134,19.71828304,2483.7,2482.8,0.7535]
[1746977569814,15.692,2483.7,2482.8,0.7535]
[1746977569986,19.71825758,2483.7,2482.8,0.7535]
[1746977570192,15.692,2483.7,2482.8,0.7535]
[1746977573932,10.05,2483.7,2482.9,0.04027323]
[1746977574231,10.05,2483.7,2483.0,0.8038]
[1746977574730,10.05,2483.7,2483.1,1.68418]
[1746977574930,5.62,2483.9,2483.1,1.68418]
[1746977575747,8.0,2483.8,2483.1,1.68418]
[1746977575947,0.55,2483.5,2483.1,0.8038]
[1746977576134,4.02681153,2483.4,2483.1,0.8038]
[1746977576325,10.05,2483.3,2483.1,0.8038]
[1746977578046,10.05,2483.3,2482.2,0.8038]
[1746977578356,10.05,2483.4,2482.4,0.8038]
[1746977578512,14.07676751,2483.4,2482.4,0.8038]
[1746977578719,2.817,2483.3,2482.5,0.04027907]
[1746977578919,2.817,2483.3,2482.6,0.7963]
[1746977579118,10.05,2483.4,2482.7,0.04027679]
[1746977579319,15.669,2483.6,2482.5,0.7963]
[1746977579840,15.669,2483.6,2482.7,0.7963]
[1746977580751,15.669,2483.6,2482.9,0.7963]
[1746977581130,18.083,2483.6,2482.9,0.7963]
[1746977581332,15.669,2483.6,2482.9,0.7963]
[1746977581733,10.05,2484.0,2483.1,0.7963]
[1746977581933,15.97981227,2484.1,2483.1,0.7963]
[1746977582128,10.05,2484.1,2483.1,0.7963]
[1746977582820,10.05,2484.5,2483.4,0.7963]
[1746977583021,8.0,2484.5,2483.4,0.7963]
[1746977583221,10.05,2484.6,2483.4,0.7963]
[1746977584071,4.02510505,2484.5,2483.4,0.7963]
[1746977584359,12.464,2484.6,2483.5,0.04026085]
[1746977584520,12.464,2484.6,2483.6,0.8142]
[1746977585572,10.05,2484.6,2483.6,0.8142]
[1746977586284,10.804,2484.8,2483.8,0.8142]
[1746977586879,10.8425,2485.2,2483.8,0.8142]
[1746977587069,2.804,2485.0,2484.0,0.8142]
[1746977587376,8.0,2484.9,2484.0,0.8142]
[1746977587763,12.02431003,2484.9,2484.0,0.8142]
[1746977587951,4.02454038,2484.8,2484.0,0.8142]
[1746977588157,8.0,2484.9,2484.0,0.8142]
[1746977588384,2.805,2484.9,2484.1,0.04025447]
[1746977588586,3.4209,2484.9,2484.2,0.7577]
[1746977588945,10.35767713,2485.2,2484.2,0.7577]
[1746977589139,2.803,2485.5,2484.4,0.7577]
[1746977590893,6.82641964,2485.5,2484.4,0.7577]
[1746977592112,8.0,2485.4,2484.4,0.7979456]
[1746977592528,8.0,2485.4,2484.4,0.7577]
[1746977592682,2.803,2485.5,2484.4,0.7577]
[1746977593078,8.0,2485.7,2484.6,0.7577]
[1746977593278,2.803,2486.1,2484.8,0.7577]
[1746977593475,8.0,2486.0,2485.0,0.7987]
[1746977593727,10.05,2486.4,2485.1,0.04023023]
[1746977593882,12.853,2486.4,2485.2,0.7987]
[1746977594222,8.0,2486.3,2485.4,0.7987]
[1746977597335,12.02215854,2486.3,2485.4,0.7987]
[1746977597620,8.0,2486.1,2485.4,0.7987]
[1746977597984,12.57232096,2486.2,2485.4,0.7987]
[1746977598385,8.0,2486.0,2485.4,0.7987]
[1746977599121,0.55,2486.2,2485.4,0.7987]
[1746977599432,8.0,2486.1,2485.4,0.7987]
[1746977599987,8.0,2486.3,2485.4,0.7987]
[1746977601530,12.0220781,2486.3,2485.4,0.7987]
[1746977602241,8.0,2486.3,2485.4,0.7987]
[1746977603027,12.0220465,2486.3,2485.4,0.7987]
[1746977603242,8.0,2486.3,2485.4,0.7987]
[1746977603730,8.0,2486.1,2485.4,0.7987]
[1746977604043,4.0225664,2486.0,2485.4,0.7987]
[1746977604409,4.02271199,2485.9,2485.4,0.7987]
[1746977604608,4.42513381,2485.8,2485.4,0.7987]
[1746977604941,6.82510033,2485.7,2485.1,0.7736]
[1746977605152,4.02319196,2485.6,2485.1,0.7736]
[1746977605358,8.55,2485.6,2485.1,0.7736]
[1746977606158,14.146,2485.6,2485.1,0.7736]
[1746977606362,0.87375968,2485.5,2485.1,0.7736]
[1746977607274,2.414,2485.4,2485.1,0.7736]
[1746977607423,0.87375968,2485.5,2485.1,0.7736]
[1746977608131,5.596,2485.6,2485.1,0.7736]
[1746977608332,10.05,2485.7,2485.1,0.7736]
[1746977608537,10.05,2486.1,2485.1,0.7736]
[1746977608838,10.05,2486.1,2485.2,0.79853721]
[1746977609196,10.05,2486.2,2485.2,0.79853236]
[1746977609461,10.05,2486.2,2485.2,0.7583]
[1746977609875,10.05,2486.2,2485.2,0.79852881]
[1746977610373,14.487,2486.5,2485.2,0.7583]
[1746977610526,14.487,2486.5,2485.4,0.7583]
[1746977610722,8.0,2486.5,2485.4,0.7583]
[1746977611764,0.55,2486.4,2485.4,0.7583]
[1746977611923,4.02244548,2486.1,2485.4,0.7583]
[1746977612129,5.594,2486.1,2485.4,0.7583]
[1746977612352,15.644,2486.1,2485.4,0.7583]
[1746977612664,10.964,2486.0,2484.2,10.0]
[1746977612866,4.02345287,2485.5,2484.8,0.7583]
[1746977613080,3.19434529,2485.4,2484.8,0.7583]
[1746977615987,2.792,2485.4,2484.8,0.7583]
[1746977624005,2.792,2485.4,2485.0,0.7668]
[1746977626370,4.02324791,2485.6,2485.0,0.7668]
[1746977627005,8.0,2485.6,2485.0,0.7668]
[1746977627303,5.559,2485.7,2485.0,0.7668]
[1746977627602,9.5820814,2485.7,2485.0,0.7668]
[1746977628023,5.559,2485.7,2485.0,0.7668]
[1746977628224,9.58212083,2485.7,2485.0,0.7668]
[1746977628404,5.559,2485.7,2485.0,0.7668]
[1746977630129,4.02324892,2485.6,2485.0,0.7668]
[1746977630333,0.55,2485.6,2485.0,0.7668]
[1746977630543,5.559,2485.7,2485.0,0.7668]
[1746977630837,4.02327044,2485.6,2485.0,0.7668]
[1746977631638,9.58207963,2485.7,2485.0,0.7668]
[1746977631943,4.02320319,2485.6,2485.0,0.7668]
[1746977632240,15.609,2485.7,2485.0,0.7668]
[1746977633633,12.842,2485.7,2485.0,0.7668]
[1746977633821,10.05,2486.5,2485.2,0.7668]
[1746977634137,4.02187021,2486.5,2485.4,0.7668]
[1746977634434,0.7855,2486.5,2485.4,0.7668]
[1746977634748,4.0222209,2486.2,2485.4,0.7668]
[1746977635249,8.0,2486.2,2485.4,0.7668]
[1746977635400,8.0,2486.4,2485.4,0.7668]
[1746977635742,0.55,2486.4,2485.4,0.7668]
[1746977636054,10.35633785,2486.6,2485.3,0.7668]
[1746977636347,14.3779023,2486.6,2485.3,0.7668]
[1746977636550,10.35633785,2486.6,2485.5,0.7668]
[1746977636841,10.35633785,2486.6,2485.7,0.7668]
[1746977639006,4.0217315,2486.5,2485.7,0.7668]
[1746977639206,10.35633785,2486.6,2485.7,0.7668]
[1746977639435,14.37797297,2486.6,2485.7,0.7668]
[1746977640137,4.02174272,2486.5,2485.7,0.7668]
[1746977640341,4.02190544,2486.4,2485.7,0.7668]
[1746977640640,4.02176744,2486.5,2485.7,0.7668]
[1746977640841,4.02191282,2486.4,2485.7,0.7668]
[1746977641452,4.0222748,2486.2,2485.7,0.7668]
[1746977641619,0.80443292,2486.1,2485.7,0.7668]
[1746977642003,10.35633785,2486.6,2485.7,0.7668]
[1746977644810,10.05,2486.6,2485.8,0.04022642]
[1746977645001,10.05,2486.6,2485.4,0.7522]
[1746977645206,10.05,2486.6,2485.6,0.7522]
[1746977645402,10.05,2486.6,2485.9,0.7522]
[1746977645611,2.792,2486.8,2486.1,0.7522]
[1746977645806,10.05,2487.1,2486.3,0.7522]
[1746977646045,10.05,2487.2,2486.4,0.04021428]
[1746977646250,12.814,2487.3,2486.5,0.7522]
[1746977646844,12.814,2487.3,2486.7,0.7522]
[1746977649149,16.83443153,2487.3,2486.7,0.7522]
[1746977649533,12.814,2487.3,2486.7,0.7522]
[1746977650018,2.764,2487.3,2486.7,0.7522]
[1746977650941,10.05,2487.6,2486.7,0.7522]
[1746977651251,12.812,2487.7,2486.7,0.7522]
[1746977651455,12.812,2487.7,2486.8,0.8257]
[1746977653176,16.83180927,2487.7,2486.8,0.8257]
[1746977653344,4.01995209,2487.6,2486.8,0.8257]
[1746977653548,12.812,2487.7,2486.8,0.8257]
[1746977653754,17.13096155,2487.7,2486.8,0.8257]
[1746977654137,13.11116315,2487.7,2486.8,0.8257]
[1746977654937,10.34916315,2487.7,2486.8,0.8257]
[1746977655743,10.05,2487.7,2486.9,0.04020695]
[1746977655948,12.813,2487.8,2487.0,0.7904]
[1746977657156,2.414,2487.7,2487.0,0.7904]
[1746977657474,12.813,2487.8,2487.0,0.7904]
[1746977658646,2.763,2487.8,2487.0,0.7904]
[1746977658863,2.763,2487.8,2487.2,0.7511]
[1746977659053,6.76010609,2488.2,2487.2,0.7511]
[1746977659654,29.98982981,2488.3,2487.2,0.7511]
[1746977659849,8.0,2488.2,2487.2,0.7511]
[1746977660053,8.0,2488.2,2486.9,0.55]
[1746977660242,8.0,2488.2,2487.0,0.7511]
[1746977660963,15.556,2488.3,2487.0,0.7511]
[1746977661158,19.57488804,2488.3,2487.0,0.7511]
[1746977661363,4.01899181,2488.2,2487.0,0.7511]
[1746977661583,19.57487773,2488.3,2487.0,0.7511]
[1746977662365,12.812,2488.3,2487.0,0.7511]
[1746977662964,10.05,2488.3,2487.0,0.7511]
[1746977664268,2.762,2488.5,2487.2,0.7608]
[1746977664468,2.762,2488.5,2487.5,0.7608]
[1746977664684,2.762,2488.5,2487.7,0.7608]
[1746977664968,6.78059747,2488.5,2487.7,0.7608]
[1746977665509,2.414,2487.8,2486.6,0.7608]
[1746977665707,0.55,2487.2,2486.6,0.7608]
[1746977665921,2.762,2487.1,2486.6,0.7608]
[1746977666272,9.19683346,2487.1,2486.6,0.7608]
[1746977666614,2.762,2487.1,2486.6,0.7608]
[1746977666977,6.78283367,2487.1,2486.6,0.7608]
[1746977667174,2.762,2487.1,2486.6,0.7608]
[1746977667676,6.78276239,2487.1,2486.6,0.7608]
[1746977668293,4.0209223,2487.0,2486.6,0.7608]
[1746977668973,6.78282541,2487.1,2486.6,0.7608]
[1746977669174,2.762,2487.1,2486.6,0.7608]
[1746977670079,4.01980358,2487.7,2486.6,0.7608]
[1746977670377,5.524,2487.6,2486.8,0.7567]
[1746977672294,10.05,2487.8,2486.9,0.04020771]
[1746977672494,2.762,2487.9,2487.0,0.7567]
[1746977673709,8.0,2487.8,2487.0,0.7567]
[1746977674012,2.762,2487.9,2487.1,0.04020125]
[1746977674217,2.762,2487.9,2487.2,0.7881]
[1746977674510,8.0,2487.8,2487.2,0.7881]
[1746977674711,2.762,2487.9,2487.2,0.7881]
[1746977675020,12.01987219,2487.7,2487.2,0.7881]
[1746977675509,12.0201136,2487.5,2487.2,0.7881]
[1746977675709,4.0201136,2487.5,2487.2,0.7881]
[1746977676276,4.02070869,2487.2,2486.9,0.7881]
[1746977676481,0.40207087,2487.2,2486.1,5.516]
[1746977676681,0.40207087,2487.2,2486.2,0.7881]
[1746977676920,8.0,2487.0,2486.2,0.7881]
[1746977677321,8.0,2487.1,2486.2,0.7881]
[1746977679237,12.0208342,2487.1,2486.2,0.7881]
[1746977679388,12.0208342,2487.1,2486.3,0.63041]
[1746977680038,12.42272623,2487.2,2486.4,0.7965]
[1746977680488,12.72750431,2487.2,2486.4,0.7965]
[1746977681001,8.70684895,2487.2,2486.4,0.7965]
[1746977681334,4.02074705,2487.1,2486.4,0.7965]
[1746977681629,8.70684895,2487.2,2486.4,0.7965]
[1746977681853,12.72744151,2487.2,2486.4,0.7965]
[1746977682327,0.55,2486.9,2486.4,0.7965]
[1746977682527,4.02143566,2486.7,2485.4,0.7965]
[1746977682734,4.02172553,2486.5,2485.5,0.7965]
[1746977683028,8.0,2486.5,2485.5,0.7965]
[1746977683595,0.55,2486.4,2485.5,0.7965]
[1746977683825,0.95207087,2486.4,2485.5,0.7965]
[1746977683989,4.97408589,2486.4,2485.5,0.7965]
[1746977684191,1.72557087,2486.4,2485.5,0.7965]
[1746977684420,4.02352844,2485.4,2483.8,0.7659]
[1746977684626,8.0,2485.3,2483.9,0.7659]
[1746977684917,8.87396001,2485.3,2484.1,0.7659]
[1746977685367,5.517,2485.4,2484.2,0.04024877]
[1746977685570,5.517,2485.4,2484.3,0.7659]
[1746977686579,18.05,2485.6,2484.3,0.7659]
[1746977686734,8.0,2485.4,2484.1,0.7659]
[1746977686933,8.0,2485.4,2484.3,0.7659]
[1746977687454,10.05,2485.6,2484.3,0.7659]
[1746977687455,15.566,2485.6,2484.3,0.7659]
[1746977687662,12.811,2485.6,2484.3,0.7659]
[1746977687955,12.811,2485.6,2484.6,0.7659]
[1746977688144,12.811,2485.6,2484.7,0.04024297]
[1746977688333,12.811,2485.6,2484.8,0.7659]
[1746977688758,12.811,2485.6,2484.9,0.04024087]
[1746977689061,12.811,2485.6,2485.0,0.8261]
[1746977689573,12.811,2485.6,2484.7,0.8806143]
[1746977689738,12.811,2485.6,2485.2,0.8261]
[1746977690875,2.761,2486.3,2485.2,0.8261]
[1746977691163,2.761,2486.3,2485.4,0.8261]
[1746977692933,10.05,2486.5,2485.5,0.0402253]
[1746977693131,10.05,2486.5,2485.3,0.88261]
[1746977693132,10.05,2486.5,2485.6,0.8261]
[1746977693754,5.51,2486.8,2485.6,0.8261]
[1746977694066,5.51,2486.8,2485.8,0.8261]
[1746977694233,0.551,2486.7,2485.8,0.8261]
[1746977694433,8.551,2486.7,2485.8,0.8261]
[1746977694661,12.57247266,2486.7,2485.8,0.8261]
[1746977696167,8.551,2486.7,2485.8,0.8261]
[1746977697243,8.0,2486.6,2485.8,0.8261]
[1746977697444,8.0,2486.6,2485.9,0.36143253]
[1746977697856,8.0,2486.6,2486.0,0.8261]
[1746977701251,0.551,2486.7,2486.0,0.8261]
[1746977701451,0.30187392,2486.8,2486.0,0.8261]
[1746977701754,8.0,2486.9,2486.0,0.8261]
[1746977703492,10.3495091,2487.0,2486.2,0.8141]
[1746977704369,10.3495091,2487.0,2486.4,0.779]
[1746977705371,0.2995091,2487.0,2486.4,0.779]
[1746977705584,2.761,2487.1,2486.4,0.779]
[1746977707016,10.05,2487.5,2486.6,0.779]
[1746977707302,10.05,2487.6,2486.8,0.779]
[1746977707598,0.29998914,2487.6,2486.7,0.88192108]
[1746977707908,12.78,2487.8,2486.8,0.81920593]
[1746977709051,10.05,2487.8,2486.8,3.54920593]
[1746977709255,10.05,2487.8,2487.0,0.7756]
[1746977712210,10.05,2487.8,2487.0,3.5046]
[1746977712410,0.29431973,2487.9,2487.2,0.7756]
[1746977712615,10.05,2488.3,2487.4,0.7756]
[1746977713184,10.05,2488.3,2487.5,0.04019302]
[1746977713394,10.05,2488.3,2487.6,0.7816]
[1746977713922,10.05,2488.3,2487.7,0.04019303]
[1746977714117,2.729,2488.7,2487.8,0.7816]
[1746977714316,5.457,2489.0,2488.0,0.7816]
[1746977714479,10.05,2488.9,2488.0,0.7816]
[1746977714682,18.05,2488.9,2488.0,0.7816]
[1746977714878,10.05,2488.9,2488.0,0.7816]
[1746977715092,10.05,2488.9,2488.2,0.7816]
[1746977715290,2.729,2489.3,2488.4,0.7816]
[1746977715511,10.05,2489.4,2488.6,0.7816]
[1746977715718,13.19501,2489.6,2488.5,0.7816]
[1746977715934,13.19501,2489.6,2488.6,0.87816]
[1746977716094,13.19501,2489.6,2488.7,0.7816]
[1746977716731,10.05,2489.6,2488.7,8.0]
[1746977716906,10.05,2489.6,2488.9,0.7816]
[1746977717107,10.05,2489.6,2488.9,3.5096]
[1746977719532,10.05,2489.6,2488.9,0.7816]
[1746977719706,4.0170403,2489.4,2488.9,0.7816]
[1746977719907,0.40170403,2489.3,2488.9,0.7816]
[1746977720099,5.24087623,2489.3,2488.6,0.7914]
[1746977720290,14.06736314,2489.2,2488.6,0.7914]
[1746977720494,10.05,2489.2,2488.6,0.7914]
[1746977722358,1.3719,2489.0,2488.3,0.7914]
[1746977722560,18.05,2488.9,2487.7,0.7914]
[1746977722761,4.01830125,2488.7,2487.7,0.7914]
[1746977723054,4.01827246,2488.7,2487.7,0.7914]
[1746977723222,4.01827246,2488.7,2487.8,0.62464]
[1746977724255,4.01827246,2488.7,2487.7,0.7914]
[1746977724256,4.56824325,2488.7,2487.7,0.7914]
[1746977724728,8.0,2488.8,2487.7,0.7914]
[1746977724923,2.727,2488.7,2487.9,0.7695]
[1746977726061,0.55,2488.6,2487.9,0.7695]
[1746977726574,2.727,2488.7,2487.9,0.7695]
[1746977726955,6.74517773,2488.7,2487.9,0.7695]
[1746977728382,4.01833387,2488.6,2487.9,0.7695]
[1746977728589,4.01883773,2488.3,2487.9,0.7695]
[1746977728783,14.06883773,2488.3,2487.9,0.7695]
[1746977728984,4.019023,2488.2,2487.9,0.7695]
[1746977729184,4.01915066,2488.1,2487.9,0.7695]
[1746977729395,4.01915066,2488.1,2487.6,0.7695]
[1746977729551,6.74615066,2488.1,2487.6,0.7695]
[1746977729888,8.0,2488.0,2487.6,0.7695]
[1746977731890,0.20063702,2487.9,2487.6,0.7695]
[1746977733490,0.20063702,2487.9,2487.6,1.11915]
[1746977733671,0.20063702,2487.9,2487.7,0.7844]
[1746977733872,2.727,2488.6,2487.7,0.7844]
[1746977734102,0.19809392,2487.8,2487.7,0.7844]
[1746977734290,8.0,2488.5,2487.7,0.7844]
[1746977734478,0.19932388,2487.8,2487.7,0.7844]
[1746977734680,8.0,2488.5,2487.7,0.7844]
[1746977734881,0.19932388,2487.8,2487.7,0.7844]
[1746977735080,12.01849828,2488.5,2487.7,0.7844]
[1746977735279,0.19968826,2487.8,2487.7,0.7844]
[1746977735481,12.01849828,2488.5,2487.7,0.7844]
[1746977735711,0.19968826,2487.8,2487.7,0.7844]
[1746977735884,2.727,2488.6,2487.7,0.7844]
[1746977735885,6.74538076,2488.6,2487.7,0.7844]
[1746977736086,0.19968826,2487.8,2487.7,0.7844]
[1746977736299,2.727,2488.6,2487.7,0.7844]
[1746977736702,0.19968826,2488.5,2487.7,0.7844]
[1746977737488,13.07128186,2488.7,2487.7,0.7844]
[1746977737803,8.0,2488.6,2487.7,0.7844]
[1746977737986,0.1997338,2488.5,2487.7,0.7844]
[1746977738497,4.21823019,2488.5,2487.7,0.7844]
[1746977738803,0.1997338,2488.5,2487.7,0.7844]
[1746977739498,2.9267338,2488.5,2487.7,0.7844]
[1746977740821,0.1997338,2488.5,2487.7,0.7844]
[1746977741044,2.9267338,2488.5,2487.7,0.7844]
[1746977741620,0.1997338,2488.5,2487.7,0.7844]
[1746977741956,10.05,2488.7,2487.9,0.7687]
[1746977742242,10.05,2488.7,2488.1,0.7687]
[1746977742548,0.19968826,2488.6,2488.1,0.7687]
[1746977743411,0.74968826,2488.6,2488.1,0.7687]
[1746977743742,4.7680316,2488.6,2488.1,0.7687]
[1746977743943,7.4950316,2488.6,2488.1,0.7687]
[1746977744740,2.92668826,2488.6,2488.1,0.7687]
[1746977745133,8.19968826,2488.6,2488.1,0.7687]
[1746977747049,0.19968826,2488.6,2488.1,0.7687]
[1746977748347,0.4952043,2488.6,2488.1,0.7687]
[1746977748846,4.0185789,2488.5,2487.9,0.7997]
[1746977749223,0.20369616,2488.4,2487.9,0.7997]
[1746977749746,4.01858952,2488.5,2487.9,0.7997]
[1746977749951,0.20369616,2488.4,2487.9,0.7997]
[1746977750310,9.08581604,2488.6,2487.9,0.7997]
[1746977750509,0.20369616,2488.5,2487.9,0.7997]
[1746977751952,10.25369616,2488.5,2487.9,0.7997]
[1746977755619,10.25369616,2488.5,2488.1,0.8231]
[1746977756715,10.25369616,2488.5,2488.0,8.0]
[1746977756916,10.25369616,2488.5,2488.1,0.8231]
[1746977757116,10.25369616,2488.5,2488.3,0.8231]
[1746977757308,0.20369616,2488.5,2488.3,0.8231]
[1746977757508,10.05,2489.3,2488.4,0.86328165]
[1746977757763,0.2019657,2489.2,2488.4,0.8231]
[1746977758054,12.776,2489.4,2488.4,0.8231]
[1746977758554,0.2019657,2489.3,2488.4,0.8231]
[1746977759559,0.2019657,2489.3,2488.5,0.04018015]
[1746977759719,0.2019657,2489.3,2488.6,0.8231]
[1746977760666,0.2019657,2489.3,2488.7,0.04017694]
[1746977760964,2.727,2489.5,2488.7,0.8231]
[1746977761262,0.2019657,2489.4,2488.9,0.8231]
[1746977762217,0.2019657,2489.4,2488.9,0.86327499]
[1746977762817,12.775,2489.8,2488.9,0.86327499]
[1746977763031,0.2019657,2489.7,2488.9,0.86327499]
[1746977763453,0.2019657,2489.7,2488.9,0.8231]
[1746977763632,0.2019657,2489.7,2489.0,0.04017032]
[1746977763833,0.2019657,2489.7,2489.1,0.7718]
[1746977769556,4.01672681,2489.6,2488.9,0.7943]
[1746977769758,2.93716381,2489.5,2488.9,0.7943]
[1746977770379,4.0306,2489.4,2488.9,0.7943]
[1746977770580,4.01740643,2489.2,2488.4,0.7943]
[1746977770781,0.21166217,2489.1,2488.4,0.7943]
[1746977770992,0.21166217,2489.1,2488.5,0.35193]
[1746977772402,0.21166217,2489.1,2488.6,0.7943]
[1746977779769,4.22925343,2489.1,2488.3,0.7907]
[1746977779969,0.8315,2488.7,2487.5,0.7907]
[1746977780173,0.75779381,2488.6,2487.5,0.7907]
[1746977780414,0.75779381,2488.6,2487.6,10.06957]
[1746977780712,0.75779381,2488.6,2487.6,2.06957]
[1746977781183,0.20779381,2488.6,2487.7,0.7907]
[1746977782488,0.20779381,2488.6,2487.9,0.7907]
[1746977782800,0.20779381,2488.6,2488.2,0.7907]
[1746977782992,2.725,2489.1,2488.3,0.87907]
[1746977783193,0.20597274,2489.0,2488.4,0.7907]
[1746977786933,2.964,2488.9,2488.0,0.7605]
[1746977787430,4.01818351,2488.7,2488.0,0.7605]
[1746977787730,8.0,2488.8,2488.0,0.7605]
[1746977787934,0.20665575,2488.6,2488.0,0.7605]
[1746977788098,10.05,2488.7,2488.0,0.7605]
[1746977788298,0.20665575,2488.5,2488.0,0.7605]
[1746977788500,12.464,2488.7,2488.0,0.7605]
[1746977789010,0.20665575,2488.6,2488.0,0.7605]
[1746977789212,0.55,2488.5,2488.0,0.7605]
[1746977789430,10.6,2488.5,2488.0,0.7605]
[1746977789637,0.20665575,2488.4,2488.0,0.7605]
[1746977791306,0.20665575,2488.4,2487.7,3.5499]
[1746977792521,8.20665575,2488.4,2487.7,0.8249]
[1746977792856,8.20665575,2488.4,2487.0,0.8249]
[1746977792857,4.82745362,2488.1,2487.0,0.8249]
[1746977793147,8.55,2487.9,2487.0,0.8249]
[1746977793305,16.99630189,2488.0,2487.0,0.8249]
[1746977793306,12.97692363,2488.0,2487.0,0.8249]
[1746977793507,8.0,2488.4,2487.2,8.0]
[1746977793816,5.448,2488.5,2487.4,0.7857]
[1746977794033,0.20160029,2488.4,2487.4,0.7857]
[1746977794344,4.22034866,2488.4,2487.6,0.7857]
[1746977794543,10.6,2488.3,2487.6,0.7857]
[1746977794911,0.20237484,2488.2,2487.6,0.7857]
[1746977798342,0.95287484,2488.2,2487.6,0.7857]
[1746977798557,4.0191493,2488.1,2487.6,0.7857]
[1746977798758,8.0,2487.9,2487.3,0.7772]
[1746977798948,18.05,2487.9,2487.3,0.7772]
[1746977799145,9.3005,2487.7,2486.4,0.7772]
[1746977799344,4.02037994,2487.4,2486.4,0.7772]
[1746977799571,8.55,2487.3,2486.4,0.7772]
[1746977799756,4.02095703,2487.0,2486.4,0.7772]
[1746977799930,4.02131833,2486.8,2486.4,0.7772]
[1746977800135,10.05,2486.7,2485.8,0.7772]
[1746977800346,3.273,2486.6,2485.8,0.7772]
[1746977800531,0.55,2486.4,2485.8,0.7772]
[1746977800756,10.05,2486.3,2485.8,0.7772]
[1746977801098,10.23669846,2486.3,2485.8,0.7772]
[1746977802372,0.55,2486.2,2485.5,0.7772]
[1746977802570,10.6,2486.2,2485.5,0.7772]
[1746977802776,11.87603088,2486.2,2485.5,0.7772]
[1746977802944,0.55,2486.0,2485.5,0.7772]
[1746977803331,10.6,2486.0,2485.5,0.7772]
[1746977803532,0.55,2485.8,2485.2,0.7772]